fUSD/lending_fUSD_20240105
["ID","MTS","AMOUNT","RATE_DAILY","PERIOD"]
[310284413,1704462638778,-500.0,0.00030136,2]
[310284416,1704462638794,-582.57,0.00030136,2]
[310284419,1704462638811,-500.0,0.00030136,2]
[310284421,1704462638827,-576.01,0.00030136,2]
[310284424,1704462638842,-500.0,0.00030136,2]
[310284427,1704462638858,-500.0,0.00030136,2]
[310284429,1704462638873,-2104.27,0.00030136,2]
[310284432,1704462638889,-500.0,0.00030136,2]
[310284435,1704462638904,-956.39,0.00030136,2]
[310284437,1704462638921,-500.0,0.00030136,2]
[310284440,1704462638936,-500.0,0.00030136,2]
[310284443,1704462638952,-500.0,0.00030136,2]
[310284446,1704462638967,-500.0,0.00030136,2]
[310284448,1704462638982,-739.43,0.00030136,2]
[310284451,1704462638997,-866.82,0.00030136,2]
[310284453,1704462639012,-500.0,0.00030136,2]
[310284456,1704462639026,-500.0,0.00030136,2]
[310284458,1704462639042,-500.0,0.00030136,2]
[310284461,1704462639058,-500.0,0.00030136,2]
[310284463,1704462639075,-500.0,0.00030136,2]
[310284466,1704462639091,-9030.56,0.00030136,2]
[310284469,1704462639107,-504.05880068,0.00030136,2]
[310284471,1704462639121,-500.0,0.00030136,2]
[310284474,1704462639136,-500.0,0.00030136,2]
[310284476,1704462639152,-500.0,0.00030136,2]
[310284479,1704462639168,-500.0,0.00030136,2]
[310284482,1704462639184,-500.0,0.00030136,2]
[310284484,1704462639199,-500.0,0.00030136,2]
[310284488,1704462639222,-500.0,0.00030136,2]
[310284491,1704462639242,-500.0,0.00030136,2]
[310284494,1704462639261,-500.0,0.00030136,2]
[310284497,1704462639277,-1002.75,0.00030136,2]
[310284500,1704462639294,-500.0,0.00030136,2]
[310284502,1704462639310,-500.0,0.00030136,2]
[310284505,1704462639327,-500.0,0.00030136,2]
[310284508,1704462639343,-500.0,0.00030136,2]
[310284510,1704462639359,-500.0,0.00030136,2]
[310284513,1704462639374,-500.0,0.00030136,2]
[310284515,1704462639389,-503.56953804,0.00030136,2]
[310284518,1704462639406,-500.0,0.00030136,2]
[310284521,1704462639422,-500.0,0.00030136,2]
[310284524,1704462639438,-1306.09,0.00030136,2]
[310284526,1704462639454,-1373.98,0.00030136,2]
[310284529,1704462639469,-3435.21,0.00030136,2]
[310284532,1704462639485,-1130.49,0.00030136,2]
[310284534,1704462639500,-500.0,0.00030136,2]
[310284537,1704462639517,-500.0,0.00030136,2]
[310284540,1704462639532,-370.81604865,0.00030136,2]
[310284542,1704462639548,-500.0,0.00030136,2]
[310284545,1704462639564,-500.0,0.00030136,2]
[310284548,1704462639579,-500.0,0.00030136,2]
[310284551,1704462639595,-500.0,0.00030136,2]
[310284553,1704462639610,-500.0,0.00030136,2]
[310284556,1704462639625,-500.0,0.00030136,2]
[310284559,1704462639640,-500.0,0.00030136,2]
[310284561,1704462639654,-500.0,0.00030136,2]
[310284564,1704462639668,-18117.44,0.00030136,2]
[310284566,1704462639683,-500.0,0.00030136,2]
[310284569,1704462639699,-500.0,0.00030136,2]
[310284572,1704462639714,-500.0,0.00030136,2]
[310284574,1704462639729,-510.15895742,0.00030136,2]
[310284577,1704462639744,-500.0,0.00030136,2]
[310284580,1704462639758,-5242.16,0.00030136,2]
[310284581,1704462639774,-500.0,0.00030136,2]
[310284583,1704462639786,-500.0,0.00030136,2]
[310284585,1704462639798,-500.0,0.00030136,2]
[310284613,1704462640040,-500.0,0.00030136,2]
[310284619,1704462640071,-500.0,0.00030136,2]
[310284622,1704462640081,-500.0,0.00030136,2]
[310284624,1704462640091,-500.0,0.00030136,2]
[310284626,1704462640100,-500.0,0.00030136,2]
[310284629,1704462640109,-576.44,0.00030136,2]
[310284631,1704462640119,-500.0,0.00030136,2]
[310284633,1704462640128,-500.0,0.00030136,2]
[310284635,1704462640138,-500.0,0.00030136,2]
[310284637,1704462640148,-500.0,0.00030136,2]
[310284639,1704462640157,-311.33272249,0.00030136,2]
[310284641,1704462640166,-500.0,0.00030136,2]
[310284643,1704462640175,-500.0,0.00030136,2]
[310284645,1704462640184,-500.0,0.00030136,2]
[310284647,1704462640193,-500.0,0.00030136,2]
[310284648,1704462640203,-500.0,0.00030136,2]
[310284650,1704462640212,-500.0,0.00030136,2]
[310284652,1704462640221,-9874.68,0.00030136,2]
[310284654,1704462640230,-500.0,0.00030136,2]
[310284656,1704462640240,-500.0,0.00030136,2]
[310284658,1704462640249,-500.0,0.00030136,2]
[310284660,1704462640259,-500.0,0.00030136,2]
[310284662,1704462640268,-1549.3,0.00030136,2]
[310284664,1704462640277,-500.0,0.00030136,2]
[310284666,1704462640286,-1129.18,0.00030136,2]
[310284668,1704462640296,-939.96,0.00030136,2]
[310284670,1704462640305,-500.0,0.00030136,2]
[310284672,1704462640315,-500.0,0.00030136,2]
[310284674,1704462640324,-500.0,0.00030136,2]
[310284676,1704462640333,-500.0,0.00030136,2]
[310284678,1704462640342,-911.51,0.00030136,2]
[310284680,1704462640352,-500.0,0.00030136,2]
[310284682,1704462640361,-500.0,0.00030136,2]
[310284684,1704462640370,-500.0,0.00030136,2]
[310284686,1704462640380,-500.0,0.00030136,2]
[310284688,1704462640389,-500.0,0.00030136,2]
[310284690,1704462640399,-302.06320966,0.00030136,2]
[310284692,1704462640409,-500.0,0.00030136,2]
[310284694,1704462640418,-500.0,0.00030136,2]
[310284696,1704462640427,-500.0,0.00030136,2]
[310284698,1704462640436,-1872.26,0.00030136,2]
[310284700,1704462640445,-500.0,0.00030136,2]
[310284702,1704462640454,-500.0,0.00030136,2]
[310284704,1704462640463,-500.0,0.00030136,2]
[310284706,1704462640473,-948.78,0.00030136,2]
[310284708,1704462640483,-500.0,0.00030136,2]
[310284710,1704462640493,-3507.21,0.00030136,2]
[310284712,1704462640503,-500.0,0.00030136,2]
[310284714,1704462640512,-417.89960137,0.00030136,2]
[310284716,1704462640525,-500.0,0.00030136,2]
[310284718,1704462640535,-646.52,0.00030136,2]
[310284720,1704462640545,-640.56,0.00030136,2]
[310284722,1704462640559,-1113.6,0.00030136,2]
[310284724,1704462640570,-500.0,0.00030136,2]
[310284726,1704462640580,-500.0,0.00030136,2]
[310284728,1704462640590,-500.0,0.00030136,2]
[310284730,1704462640601,-500.0,0.00030136,2]
[310284732,1704462640612,-500.0,0.00030136,2]
[310284734,1704462640622,-500.0,0.00030136,2]
[310284736,1704462640632,-12398.72,0.00030136,2]
[310284738,1704462640642,-500.0,0.00030136,2]
[310284740,1704462640652,-500.0,0.00030136,2]
[310284742,1704462640662,-500.0,0.00030136,2]
[310284744,1704462640671,-500.0,0.00030136,2]
[310284746,1704462640681,-5120.5,0.00030136,2]
[310284748,1704462640690,-500.0,0.00030136,2]
[310284750,1704462640699,-500.0,0.00030136,2]
[310284752,1704462640709,-525.03,0.00030136,2]
[310284754,1704462640718,-1313.91,0.00030136,2]
[310284756,1704462640727,-5677.55,0.00030136,2]
[310284758,1704462640736,-1005.32,0.00030136,2]
[310284760,1704462640745,-500.0,0.00030136,2]
[310284762,1704462640755,-598.03,0.00030136,2]
[310284764,1704462640764,-510.22750699,0.00030136,2]
[310284766,1704462640778,-877.41,0.00030136,2]
[310284768,1704462640787,-500.0,0.00030136,2]
[310284770,1704462640796,-500.0,0.00030136,2]
[310284772,1704462640805,-505.54,0.00030136,2]
[310284774,1704462640815,-500.0,0.00030136,2]
[310284776,1704462640824,-500.0,0.00030136,2]
[310284778,1704462640834,-500.0,0.00030136,2]
[310284779,1704462640843,-1626.21,0.00030136,2]
[310284781,1704462640852,-500.0,0.00030136,2]
[310284783,1704462640862,-500.0,0.00030136,2]
[310284785,1704462640871,-500.0,0.00030136,2]
[310284787,1704462640880,-500.0,0.00030136,2]
[310284788,1704462640890,-500.0,0.00030136,2]
[310284789,1704462640900,-507.24958046,0.00030136,2]
[310284790,1704462640909,-500.0,0.00030136,2]
[310284791,1704462640919,-503.98264818,0.00030136,2]
[310284792,1704462640928,-531.47,0.00030136,2]
[310284793,1704462640937,-500.0,0.00030136,2]
[310284794,1704462640947,-3283.57,0.00030136,2]
[310284795,1704462640956,-500.0,0.00030136,2]
[310284796,1704462640966,-500.0,0.00030136,2]
[310284797,1704462640975,-500.0,0.00030136,2]
[310284798,1704462640985,-500.0,0.00030136,2]
[310284799,1704462640995,-1271.2,0.00030136,2]
[310284801,1704462641004,-500.0,0.00030136,2]
[310284802,1704462641013,-724.48,0.00030136,2]
[310284804,1704462641026,-203.17901593,0.00030136,2]
[310284806,1704462641037,-507.09,0.00030136,2]
[310284808,1704462641046,-500.0,0.00030136,2]
[310284811,1704462641065,-500.0,0.00030136,2]
[310284814,1704462641078,-500.0,0.00030136,2]
[310284816,1704462641089,-778.56,0.00030136,2]
[310284818,1704462641099,-1354.96,0.00030136,2]
[310284820,1704462641108,-500.0,0.00030136,2]
[310284822,1704462641119,-504.84756849,0.00030136,2]
[310284824,1704462641130,-500.0,0.00030136,7]
[310284826,1704462641140,-500.0,0.00030136,2]
[310284828,1704462641150,-500.0,0.00030136,2]
[310284830,1704462641160,-2469.3,0.00030136,2]
[310284832,1704462641170,-500.0,0.00030136,2]
[310284834,1704462641180,-500.0,0.00030136,2]
[310284836,1704462641189,-500.62845034,0.00030136,2]
[310284839,1704462641199,-680.79,0.00030136,2]
[310284841,1704462641209,-500.0,0.00030136,2]
[310284843,1704462641221,-500.0,0.00030136,2]
[310284845,1704462641231,-500.0,0.00030136,2]
[310284847,1704462641241,-984.78,0.00030136,2]
[310284849,1704462641251,-500.0,0.00030136,2]
[310284851,1704462641261,-505.17,0.00030136,2]
[310284853,1704462641272,-500.0,0.00030136,2]
[310284855,1704462641283,-500.0,0.00030136,2]
[310284857,1704462641293,-507.6,0.00030136,2]
[310284859,1704462641303,-500.0,0.00030136,2]
[310284861,1704462641313,-576.28,0.00030136,2]
[310284863,1704462641323,-500.0,0.00030136,2]
[310284866,1704462641333,-17234.1,0.00030136,2]
[310284867,1704462641343,-500.0,0.00030136,2]
[310284870,1704462641353,-505.66741179,0.00030136,2]
[310284872,1704462641363,-500.0,0.00030136,2]
[310284874,1704462641372,-1543.79,0.00030136,2]
[310284876,1704462641382,-500.0,0.00030136,2]
[310284878,1704462641391,-500.0,0.00030136,2]
[310284880,1704462641401,-500.0,0.00030136,2]
[310284882,1704462641411,-500.0,0.00030136,2]
[310284884,1704462641422,-500.0,0.00030136,2]
[310284886,1704462641433,-500.0,0.00030136,2]
[310284888,1704462641442,-516.07190756,0.00030136,2]
[310284890,1704462641453,-500.0,0.00030136,2]
[310284892,1704462641462,-500.0,0.00030136,2]
[310284894,1704462641472,-1283.17,0.00030136,2]
[310284896,1704462641482,-21446.47,0.00030136,2]
[310284899,1704462641492,-500.0,0.00030136,2]
[310284900,1704462641502,-504.54707762,0.00030136,2]
[310284902,1704462641511,-500.0,0.00030136,2]
[310284905,1704462641523,-726.55,0.00030136,2]
[310284907,1704462641532,-500.0,0.00030136,2]
[310284909,1704462641542,-1141.41,0.00030136,2]
[310284911,1704462641551,-2339.46,0.00030136,2]
[310284913,1704462641561,-965.16,0.00030136,2]
[310284915,1704462641571,-500.0,0.00030136,2]
[310284917,1704462641581,-502.38893728,0.00030136,2]
[310284919,1704462641592,-500.0,0.00030136,2]
[310284921,1704462641602,-500.0,0.00030136,2]
[310284923,1704462641611,-500.0,0.00030136,2]
[310284925,1704462641621,-500.0,0.00030136,2]
[310284927,1704462641633,-530.30085895,0.00030136,2]
[310284929,1704462641642,-500.0,0.00030136,2]
[310284931,1704462641653,-500.0,0.00030136,2]
[310284933,1704462641663,-211.79875769,0.00030136,2]
[310284935,1704462641672,-1106.47,0.00030136,2]
[310284938,1704462641683,-500.0,0.00030136,2]
[310284940,1704462641694,-2533.31,0.00030136,2]
[310284942,1704462641704,-509.5316166,0.00030136,2]
[310284944,1704462641714,-500.0,0.00030136,2]
[310284946,1704462641724,-994.42,0.00030136,2]
[310284948,1704462641733,-500.0,0.00030136,2]
[310284950,1704462641743,-1627.49,0.00030136,2]
[310284952,1704462641753,-1005.58,0.00030136,2]
[310284954,1704462641763,-253.62995344,0.00030136,2]
[310284956,1704462641774,-500.0,0.00030136,2]
[310284958,1704462641784,-500.0,0.00030136,2]
[310284960,1704462641794,-500.0,0.00030136,2]
[310284962,1704462641804,-500.0,0.00030136,2]
[310284964,1704462641814,-500.0,0.00030136,2]
[310284966,1704462641824,-500.0,0.00030136,2]
[310284968,1704462641834,-500.0,0.00030136,2]
[310284970,1704462641844,-500.0,0.00030136,2]
[310284972,1704462641853,-652.84,0.00030136,2]
[310284974,1704462641863,-893.03,0.00030136,2]
[310284976,1704462641873,-500.0,0.00030136,2]
[310284978,1704462641882,-500.0,0.00030136,2]
[310284980,1704462641892,-500.0,0.00030136,2]
[310284983,1704462641903,-500.0,0.00030136,2]
[310284985,1704462641912,-1505.77,0.00030136,2]
[310284987,1704462641922,-500.0,0.00030136,2]
[310284989,1704462641931,-1015.38,0.00030136,2]
[310284991,1704462641941,-500.0,0.00030136,2]
[310284993,1704462641951,-500.0,0.00030136,2]
[310284995,1704462641960,-5259.38,0.00030136,2]
[310284997,1704462641970,-500.0,0.00030136,2]
[310284999,1704462641980,-500.0,0.00030136,2]
[310285001,1704462641990,-500.0,0.00030136,2]
[310285003,1704462642000,-541.66,0.00030136,2]
[310285005,1704462642009,-500.0,0.00030136,2]
[310285007,1704462642019,-500.0,0.00030136,2]
[310285009,1704462642029,-500.0,0.00030136,2]
[310285011,1704462642039,-594.93685702,0.00030136,2]
[310285013,1704462642048,-577.02,0.00030136,2]
[310285015,1704462642058,-1013.2510334,0.00030136,7]
[310285017,1704462642067,-1465.55,0.00030136,2]
[310285019,1704462642077,-500.0,0.00030136,2]
[310285021,1704462642087,-1317.71,0.00030136,2]
[310285023,1704462642096,-764.42,0.00030136,2]
[310285025,1704462642105,-500.0,0.00030136,2]
[310285027,1704462642116,-500.0,0.00030136,2]
[310285029,1704462642126,-163.41767204,0.00030136,5]
[310285031,1704462642135,-500.0,0.00030136,2]
[310285033,1704462642144,-500.0,0.00030136,2]
[310285035,1704462642155,-1089.37,0.00030136,2]
[310285037,1704462642164,-500.0,0.00030136,2]
[310285039,1704462642174,-1257.73,0.00030136,2]
[310285041,1704462642184,-500.0,0.00030136,2]
[310285044,1704462642197,-1444.66,0.00030136,2]
[310285046,1704462642207,-544.72669061,0.00030136,2]
[310285048,1704462642216,-500.0,0.00030136,2]
[310285050,1704462642226,-1643.9,0.00030136,2]
[310285052,1704462642235,-500.0,0.00030136,2]
[310285054,1704462642245,-481.09223389,0.00030136,2]
[310285056,1704462642255,-500.0,0.00030136,2]
[310285058,1704462642264,-500.0,0.00030136,2]
[310285060,1704462642275,-619.42,0.00030136,2]
[310285062,1704462642285,-587.76,0.00030136,2]
[310285064,1704462642294,-2031.23,0.00030136,2]
[310285066,1704462642303,-509.01922118,0.00030136,2]
[310285068,1704462642312,-552.1480578,0.00030136,2]
[310285070,1704462642322,-500.0,0.00030136,2]
[310285072,1704462642331,-500.0,0.00030136,2]
[310285074,1704462642341,-500.0,0.00030136,2]
[310285076,1704462642351,-3568.03,0.00030136,2]
[310285079,1704462642360,-500.0,0.00030136,2]
[310285082,1704462642369,-500.0,0.00030136,2]
[310285084,1704462642379,-611.45,0.00030136,2]
[310285087,1704462642388,-1281.55,0.00030136,2]
[310285090,1704462642397,-1784.16,0.00030136,2]
[310285092,1704462642407,-500.0,0.00030136,2]
[310285096,1704462642417,-851.13,0.00030136,2]
[310285099,1704462642427,-500.0,0.00030136,2]
[310285102,1704462642436,-5719.35882981,0.00030136,2]
[310285176,1704462643250,-2291.1,0.00030136,2]
[310285177,1704462643272,-3523.28117019,0.00030136,2]
[310285178,1704462643281,-500.0,0.00030136,2]
[310285179,1704462643292,-506.72466081,0.00030136,2]
[310285180,1704462643302,-769.59,0.00030136,2]
[310285181,1704462643311,-500.0,0.00030136,2]
[310285182,1704462643321,-500.0,0.00030136,2]
[310285183,1704462643330,-520.43,0.00030136,2]
[310285184,1704462643340,-500.0,0.00030136,2]
[310285185,1704462643350,-223.92669572,0.00030136,2]
[310285186,1704462643359,-500.0,0.00030136,2]
[310285187,1704462643369,-1295.63,0.00030136,2]
[310285188,1704462643378,-500.0,0.00030136,2]
[310285189,1704462643387,-500.0,0.00030136,2]
[310285190,1704462643396,-1139.94,0.00030136,2]
[310285191,1704462643406,-1000.0,0.00030136,2]
[310285192,1704462643415,-507.35835661,0.00030136,2]
[310285193,1704462643425,-1264.93,0.00030136,2]
[310285194,1704462643434,-500.0,0.00030136,2]
[310285195,1704462643443,-994.27,0.00030136,2]
[310285196,1704462643453,-500.0,0.00030136,2]
[310285197,1704462643462,-500.0,0.00030136,2]
[310285198,1704462643471,-2151.32,0.00030136,2]
[310285199,1704462643480,-539.55,0.00030136,2]
[310285200,1704462643488,-916.93,0.00030136,2]
[310285201,1704462643497,-500.0,0.00030136,2]
[310285202,1704462643506,-503.94345116,0.00030136,2]
[310285203,1704462643516,-500.0,0.00030136,2]
[310285204,1704462643528,-500.0,0.00030136,2]
[310285205,1704462643537,-500.0,0.00030136,2]
[310285206,1704462643547,-2460.9,0.00030136,2]
[310285207,1704462643556,-500.0,0.00030136,2]
[310285208,1704462643567,-1177.24,0.00030136,2]
[310285209,1704462643576,-545.18107456,0.00030136,2]
[310285210,1704462643585,-1784.78,0.00030136,2]
[310285211,1704462643594,-500.0,0.00030136,2]
[310285212,1704462643604,-500.0,0.00030136,2]
[310285213,1704462643613,-746.08,0.00030136,2]
[310285214,1704462643621,-500.0,0.00030136,2]
[310285215,1704462643630,-1057.48,0.00030136,2]
[310285216,1704462643639,-500.0,0.00030136,2]
[310285217,1704462643649,-1502.97,0.00030136,2]
[310285218,1704462643658,-500.0,0.00030136,2]
[310285219,1704462643667,-500.0,0.00030136,2]
[310285220,1704462643676,-500.0,0.00030136,2]
[310285221,1704462643685,-500.0,0.00030136,2]
[310285222,1704462643695,-500.0,0.00030136,2]
[310285223,1704462643705,-500.0,0.00030136,2]
[310285224,1704462643714,-582.39,0.00030136,2]
[310285225,1704462643723,-893.24,0.00030136,2]
[310285226,1704462643732,-500.0,0.00030136,2]
[310285227,1704462643741,-500.0,0.00030136,2]
[310285228,1704462643751,-502.89026005,0.00030136,2]
[310285229,1704462643760,-500.0,0.00030136,2]
[310285230,1704462643769,-500.0,0.00030136,2]
[310285231,1704462643780,-500.0,0.00030136,2]
[310285232,1704462643789,-500.0,0.00030136,2]
[310285233,1704462643799,-500.0,0.00030136,2]
[310285234,1704462643808,-1609.48,0.00030136,2]
[310285235,1704462643818,-500.0,0.00030136,2]
[310285236,1704462643828,-518.23086312,0.00030136,2]
[310285237,1704462643838,-1587.62,0.00030136,2]
[310285238,1704462643848,-500.0,0.00030136,2]
[310285239,1704462643857,-633.82,0.00030136,2]
[310285240,1704462643867,-500.0,0.00030136,2]
[310285241,1704462643877,-1234.4,0.00030136,2]
[310285242,1704462643885,-500.0,0.00030136,2]
[310285243,1704462643895,-500.0,0.00030136,2]
[310285244,1704462643904,-533.78,0.00030136,2]
[310285245,1704462643913,-500.0,0.00030136,2]
[310285246,1704462643923,-500.0,0.00030136,2]
[310285247,1704462643933,-500.0,0.00030136,2]
[310285248,1704462643942,-500.0,0.00030136,2]
[310285249,1704462643951,-500.0,0.00030136,2]
[310285250,1704462643961,-511.55845177,0.00030136,2]
[310285251,1704462643971,-514.72977256,0.00030136,2]
[310285252,1704462643981,-5673.19,0.00030136,2]
[310285253,1704462643993,-500.0,0.00030136,2]
[310285254,1704462644003,-500.0,0.00030136,2]
[310285255,1704462644013,-862.73,0.00030136,2]
[310285256,1704462644023,-500.0,0.00030136,2]
[310285257,1704462644032,-500.0,0.00030136,2]
[310285258,1704462644041,-500.0,0.00030136,2]
[310285259,1704462644051,-813.66,0.00030136,2]
[310285260,1704462644061,-500.0,0.00030136,2]
[310285261,1704462644071,-529.75,0.00030136,2]
[310285262,1704462644081,-569.55,0.00030136,2]
[310285263,1704462644096,-909.72,0.00030136,2]
[310285264,1704462644105,-1252.21,0.00030136,2]
[310285265,1704462644115,-500.0,0.00030136,2]
[310285266,1704462644124,-500.0,0.00030136,2]
[310285267,1704462644134,-732.28,0.00030136,2]
[310285268,1704462644144,-796.83,0.00030136,2]
[310285269,1704462644153,-500.0,0.00030136,2]
[310285270,1704462644162,-832.84,0.00030136,2]
[310285271,1704462644172,-162.15658726,0.00030137,2]
[310285272,1704462644183,-615.0,0.000302,2]
[310285273,1704462644193,-5000.0,0.00030247,2]
[310285274,1704462644202,-1074.98523512,0.00030261,2]
[310285275,1704462644211,-5732.92050107,0.000303,2]
[310285276,1704462644220,-579.52818366,0.00030409,2]
[310285277,1704462644230,-298.0,0.0003041,5]
[310285278,1704462644240,-500.0,0.0003041,2]
[310285279,1704462644252,-500.0,0.0003041,2]
[310285280,1704462644262,-520.30021,0.0003041,2]
[310285281,1704462644272,-500.0,0.0003041,2]
[310285282,1704462644282,-979.0,0.0003041,2]
[310285283,1704462644294,-516.13956875,0.0003041,2]
[310285284,1704462644304,-500.0,0.0003041,2]
[310285285,1704462644313,-500.0,0.0003041,2]
[310285286,1704462644322,-500.0,0.0003041,2]
[310285287,1704462644332,-508.65,0.0003041,2]
[310285288,1704462644341,-500.0,0.0003041,2]
[310285289,1704462644351,-500.0,0.0003041,2]
[310285290,1704462644360,-329.45707362,0.0003041,2]
[310285291,1704462644369,-631.62,0.0003041,2]
[310285292,1704462644379,-500.0,0.0003041,2]
[310285293,1704462644388,-501.42837476,0.0003041,2]
[310285294,1704462644398,-500.0,0.0003041,2]
[310285295,1704462644407,-500.0,0.0003041,2]
[310285296,1704462644417,-508.96917128,0.0003041,2]
[310285297,1704462644426,-500.0,0.0003041,2]
[310285298,1704462644436,-500.0,0.0003041,2]
[310285299,1704462644445,-500.0,0.0003041,2]
[310285300,1704462644454,-500.0,0.0003041,2]
[310285301,1704462644464,-500.0,0.0003041,2]
[310285302,1704462644474,-500.0,0.0003041,2]
[310285303,1704462644482,-500.0,0.0003041,2]
[310285304,1704462644491,-500.0,0.0003041,2]
[310285305,1704462644500,-500.0,0.0003041,2]
[310285306,1704462644510,-500.0,0.0003041,2]
[310285307,1704462644519,-1051.84,0.0003041,2]
[310285308,1704462644530,-502.18302034,0.0003041,2]
[310285309,1704462644541,-3182.39,0.0003041,2]
[310285310,1704462644550,-500.0,0.0003041,2]
[310285311,1704462644560,-500.0,0.0003041,2]
[310285312,1704462644569,-500.0,0.0003041,2]
[310285313,1704462644579,-560.18,0.0003041,2]
[310285314,1704462644588,-627.05,0.0003041,2]
[310285315,1704462644597,-500.0,0.0003041,2]
[310285316,1704462644607,-500.0,0.0003041,2]
[310285317,1704462644616,-500.0,0.0003041,2]
[310285318,1704462644625,-262.45968903,0.0003041,2]
[310285319,1704462644635,-500.0,0.0003041,2]
[310285320,1704462644644,-1208.62,0.0003041,2]
[310285321,1704462644653,-500.0,0.0003041,2]
[310285322,1704462644662,-500.0,0.0003041,2]
[310285323,1704462644672,-500.0,0.0003041,2]
[310285324,1704462644681,-504.78411462,0.0003041,2]
[310285325,1704462644690,-666.44,0.0003041,2]
[310285326,1704462644699,-1576.13,0.0003041,2]
[310285327,1704462644708,-500.0,0.0003041,2]
[310285328,1704462644718,-500.0,0.0003041,2]
[310285329,1704462644727,-500.0,0.0003041,2]
[310285330,1704462644737,-500.0,0.0003041,2]
[310285331,1704462644746,-500.0,0.0003041,2]
[310285332,1704462644756,-500.0,0.0003041,2]
[310285333,1704462644766,-500.0,0.0003041,2]
[310285334,1704462644776,-500.0,0.0003041,2]
[310285335,1704462644785,-500.0,0.0003041,2]
[310285336,1704462644795,-500.0,0.0003041,2]
[310285337,1704462644805,-573.38,0.0003041,2]
[310285338,1704462644814,-210.16688671,0.0003041,2]
[310285339,1704462644824,-536.39635212,0.0003041,2]
[310285340,1704462644833,-1033.54,0.0003041,2]
[310285341,1704462644843,-502.53779571,0.0003041,2]
[310285342,1704462644853,-518.58,0.0003041,2]
[310285343,1704462644863,-500.0,0.0003041,2]
[310285344,1704462644872,-500.0,0.0003041,2]
[310285345,1704462644882,-500.0,0.0003041,2]
[310285346,1704462644894,-500.0,0.0003041,2]
[310285347,1704462644903,-500.0,0.0003041,2]
[310285348,1704462644912,-500.0,0.0003041,2]
[310285349,1704462644924,-500.0,0.0003041,2]
[310285350,1704462644933,-500.0,0.0003041,2]
[310285351,1704462644942,-500.0,0.0003041,2]
[310285352,1704462644952,-384.04718509,0.0003041,2]
[310285353,1704462644961,-500.0,0.0003041,2]
[310285354,1704462644971,-500.0,0.0003041,2]
[310285355,1704462644981,-530.45612619,0.0003041,2]
[310285356,1704462644990,-500.0,0.0003041,2]
[310285357,1704462645001,-500.0,0.0003041,2]
[310285358,1704462645210,-500.0,0.0003041,2]
[310285359,1704462645220,-500.0,0.0003041,2]
[310285360,1704462645230,-511.20514582,0.0003041,2]
[310285361,1704462645241,-500.0,0.0003041,2]
[310285362,1704462645251,-500.0,0.0003041,2]
[310285363,1704462645261,-500.0,0.0003041,2]
[310285364,1704462645271,-500.0,0.0003041,2]
[310285365,1704462645281,-500.0,0.0003041,2]
[310285367,1704462645290,-500.0,0.0003041,2]
[310285368,1704462645301,-500.0,0.0003041,2]